Cogmind - Beta 15 @@@ ROGUE MODE // 2025.10.13 @ 22:33:20 Player: KeKe Result: Self-destructed Performance ------------- Evolutions (0) 0 Regions Visited (3) 600 Robots Destroyed (3) 15 Value Destroyed (120) 120 Prototype IDs (0) 0 Alien Tech Used (0) 0 Bonus (0) 0 TOTAL SCORE: 735 Bonus ------- None Cogmind --------- Core Integrity 160/250 Matter 300/300 Energy 250/250 System Corruption 0% Temperature Cool (0) Movement Rolling (95) Ox1 Location -9/Scraptown Parts ------- > --- POWER (1) -------- Ion Engine > --- PROPULSION (2) --- Wheel Wheel > --- UTILITY (2) ------ Large Storage Unit > --- WEAPON (2) ------- Subdweller Machine Gun Heavy Battle Rifle > --- INVENTORY (15) --- Light Ion Engine Makeshift Power Source Light Treads Light Treads Armored Wheel Compact Matter Pod (0) Weapon Cycler Layered Medium Armor Plating Hardlight Generator Hacking Suite Beam Cannon Assault Rifle Heavy Machine Gun Grenade Launcher Peak State ------------ > --- POWER ------------ Ion Engine > --- PROPULSION ------- Wheel Wheel > --- UTILITY ---------- Large Storage Unit > --- WEAPON ----------- Subdweller Machine Gun Heavy Battle Rifle > --- INVENTORY -------- Light Ion Engine Makeshift Power Source Light Treads Light Treads Aluminum Leg Aluminum Leg Armored Wheel Weapon Cycler Layered Medium Armor Plating Hacking Suite Beam Cannon Assault Rifle Heavy Machine Gun [Rating: 13] Favorites ----------- Power Ion Engine Engine Ion Engine Propulsion Wheel Leg Aluminum Leg Wheel Wheel Utility Large Storage Unit Storage Large Storage Unit Weapon Heavy Battle Rifle Energy Gun Small Laser Ballistic Gun Heavy Battle Rifle Build | -11 -10 -10 -9 ------- Run | Yrd Mat Sub Scr Slots Evolved . | . . . . Power . | . . . . Propulsion . | . . . . Utility . | . . . . Weapon . | . . . . Parts Attached 6 | . 3 2 1 Power . | . . . . Engine . | . . . . Core . | . . . . Reactor . | . . . . Propulsion 3 | . 2 . 1 Treads . | . . . . Leg . | . . . . Wheel 3 | . 2 . 1 Hover . | . . . . Flight . | . . . . Utility 1 | . 1 . . Device . | . . . . Storage 1 | . 1 . . Processor . | . . . . Hackware . | . . . . Protection . | . . . . Artifact . | . . . . Weapon 2 | . . 2 . Energy Gun . | . . . . Energy Cannon . | . . . . Ballistic Gun 2 | . . 2 . Ballistic Cannon . | . . . . Launcher . | . . . . Special Weapon . | . . . . Impact Weapon . | . . . . Slashing Weapon . | . . . . Piercing Weapon . | . . . . Special Melee Weapon . | . . . . Unidentified Prototypes . | . . . . Parts Lost 1 | . . 1 . Power . | . . . . Propulsion 1 | . . 1 . Utility . | . . . . Weapon . | . . . . Highest Loss Streak 1 | . . 1 . To Critical Strikes . | . . . . Average Backups 9 | . 6 8 10 Power 1 | . 1 1 2 Propulsion 4 | . 4 4 4 Utility . | . . . . Weapon 3 | . 1 2 3 Tool/Special . | . . . . Unused Backups 7 | . . . 7 Power 1 | . . . 1 Propulsion 3 | . . . 3 Utility . | . . . . Weapon 3 | . . . 3 Tool/Special . | . . . . Average Slot Usage (%) 82 | . 86 80 83 Engine 14 | . 14 14 14 Leg 3 | . 23 . . Wheel 22 | . 4 23 26 Storage 14 | . 15 14 14 Energy Gun 5 | . 14 7 . Ballistic Gun 23 | . 14 20 28 Peak Build Rating 13 | . 7 10 13 Average Rating 8 | . 6 7 10 On Entrance 7 | 6 6 6 10 Naked Turns . | . . . . Heaviest Build 33 | 13 28 33 33 Greatest Support 26 | 20 26 26 20 Greatest Overweight (x) 3 | . 1 3 3 Average Overweight (x) 1 | . . 1 1 Largest Inventory Capacity 15 | . 15 15 15 Average Capacity 14 | . 9 15 15 Most Carried 15 | . 7 10 15 Average Carried 9 | . 6 8 10 Final Capacity 15 | 8 15 15 15 Final Carried 14 | 6 7 10 14 Class Distribution -------------------- 100% | Mutant Dominant Class ---------------- Mutant | -10/Materials Mutant | -10/Subcaves Mutant | -9/Scraptown Resources | -11 -10 -10 -9 ----------- Run | Yrd Mat Sub Scr Matter Collected 298 | 184 . 104 10 Remotely . | . . . . Salvage Created 154 | . . 154 . Parts 9 | . . 9 . Haulers Intercepted . | . . . . Recyclers Shooed . | . . . . Parts Field Recycled . | . . . . Retrieved Matter . | . . . . Parts Self-Destructed 4 | . . 4 . Prevented . | . . . . Kills | -11 -10 -10 -9 ------- Run | Yrd Mat Sub Scr Combat Hostiles Destroyed 3 | . . 3 . Guns 3 | . . 3 . Classes Destroyed 1 | . . 1 . Subdweller 3 | . . 3 . Best Kill Streak 2 | . . 2 . Combat Bots Only 2 | . . 2 . Max Kills in Single Turn 1 | . . 1 . Gunslinging . | . . . . Exploded . | . . . . Melee . | . . . . Uniques/NPCs Destroyed . | . . . . Combat | -11 -10 -10 -9 -------- Run | Yrd Mat Sub Scr Hostile Shots Fired 13 | . . 13 . Missed 2 | . . 2 . Hits 11 | . . 11 . Projectile 11 | . . 11 . Damage Taken 253 | . . 253 . Core 90 | . . 90 . Absorbed by Shields . | . . . . Core Remaining (%) 100 | 100 . . . Volleys Fired 8 | . . 8 . Largest 2 | . . 2 . Hottest 63 | . . 63 . Shots Fired 16 | . . 16 . Gun 16 | . . 16 . Cannon . | . . . . Launcher . | . . . . Special . | . . . . Kinetic 16 | . . 16 . Thermal . | . . . . Explosive . | . . . . Electromagnetic . | . . . . Robot Hit Streak 15 | . . 15 . Robot Miss Streak . | . . . . Penetration Max . | . . . . Secondary Targets . | . . . . Shots Hit Robots 15 | . . 15 . Core Hits 5 | . . 5 . Critical Kills . | . . . . Critical Parts Destroyed . | . . . . Critical Strikes . | . . . . Melee Attacks . | . . . . Impact . | . . . . Slashing . | . . . . Piercing . | . . . . Sneak Attacks . | . . . . Combat Hostiles . | . . . . Follow-up Attacks . | . . . . Damage Inflicted 248 | . . 248 . Guns 248 | . . 248 . Cannons . | . . . . Explosions . | . . . . Melee . | . . . . Ramming . | . . . . Kinetic 248 | . . 248 . Thermal . | . . . . Explosive . | . . . . Electromagnetic . | . . . . Impact . | . . . . Slashing . | . . . . Piercing . | . . . . Highest Corruption . | . . . . Average Corruption . | . . . . Corruption Purged . | . . . . Corruption Blocked . | . . . . Overload Shots . | . . . . Overflow Damage . | . . . . Projectiles . | . . . . Explosions . | . . . . Melee . | . . . . Knockbacks . | . . . . Impact . | . . . . Kinetic . | . . . . Secondary . | . . . . Self-Inflicted Damage . | . . . . Shots . | . . . . Rammed . | . . . . Targets Rammed . | . . . . Kicked . | . . . . Crushed . | . . . . Highest Temperature . | . . . . Average Temperature . | . . . . Received Heat Transfer 69 | . . 69 . Siege Activations . | . . . . Martial Activations . | . . . . Shielding Activations . | . . . . Robots Disrupted . | . . . . Combat Hostiles . | . . . . Robots Corrupted . | . . . . Combat Hostiles . | . . . . Parts Fried . | . . . . Impact Corruptions . | . . . . Robots Melted . | . . . . Combat Hostiles . | . . . . Parts Melted . | . . . . Heat Transferred . | . . . . Parts Sabotaged . | . . . . Parts Stolen . | . . . . Parts Stripped . | . . . . Power Chain Reactions . | . . . . Alert | -11 -10 -10 -9 ------- Run | Yrd Mat Sub Scr Maximum Alert Level . | . . . . Low Security (%) 100 | . 100 . . Level 1 . | . . . . Level 2 . | . . . . Level 3 . | . . . . Level 4 . | . . . . Level 5 . | . . . . High Security . | . . . . Max Security . | . . . . Peak Influence . | . . . . Initial . | . . . . Average . | . . . . Influence Increases . | . . . . Influence Decreases . | . . . . Squads Dispatched . | . . . . Investigation . | . . . . Extermination . | . . . . Reinforcement . | . . . . Assault . | . . . . Garrison . | . . . . Intercept . | . . . . Searches Triggered . | . . . . Construction Impeded . | . . . . Haulers Reinforced . | . . . . Active Scanning Responses . | . . . . Cargo Convoy Interrupts . | . . . . Stealth | -11 -10 -10 -9 --------- Run | Yrd Mat Sub Scr Distress Signals . | . . . . Communications Jammed . | . . . . Distress Signals . | . . . . Times Spotted 4 | . . 4 . Peak Tracking Total 2 | . . 2 . Tactical Retreats . | . . . . Traps | -11 -10 -10 -9 ------- Run | Yrd Mat Sub Scr Traps Triggered . | . . . . Indirectly . | . . . . Trap Hack Attempts . | . . . . Triggered . | . . . . Disarmed . | . . . . Reprogrammed . | . . . . Reused . | . . . . Traps Extracted . | . . . . Installed . | . . . . Triggered . | . . . . Machines | -11 -10 -10 -9 ---------- Run | Yrd Mat Sub Scr Machines Disabled . | . . . . Max in Single Turn . | . . . . Machines Repaired . | . . . . Machines Dismantled . | . . . . Machines Sabotaged . | . . . . Overloaded Fab Kills . | . . . . Hacking | -11 -10 -10 -9 --------- Run | Yrd Mat Sub Scr Machines Accessed . | . . . . Terminals . | . . . . Fabricators . | . . . . Repair Stations . | . . . . Recycling Units . | . . . . Scanalyzers . | . . . . Garrison Access . | . . . . Total Hacks . | . . . . Successful . | . . . . Failed . | . . . . Catastrophic . | . . . . Database Lockouts . | . . . . Manual . | . . . . Terminals . | . . . . Fabricators . | . . . . Repair Stations . | . . . . Recycling Units . | . . . . Scanalyzers . | . . . . Garrison Access . | . . . . Terminal Hacks . | . . . . Fabricator Hacks . | . . . . Repair Station Hacks . | . . . . Recycling Unit Hacks . | . . . . Scanalyzer . | . . . . Garrison Access Hacks . | . . . . Unauthorized Hacks . | . . . . Terminals . | . . . . Fabricators . | . . . . Repair Stations . | . . . . Recycling Units . | . . . . Scanalyzers . | . . . . Garrison Access . | . . . . Data Cores Recovered . | . . . . Used . | . . . . Hacking Detections . | . . . . Full Trace Events . | . . . . Feedback Events . | . . . . Feedback Blocked . | . . . . Robot Schematics Acquired . | . . . . Robots Built . | . . . . Authchips . | . . . . Time . | . . . . Total Robot Build Rating . | . . . . Part Schematics Acquired . | . . . . Parts Built . | . . . . Authchips . | . . . . Time . | . . . . Total Part Build Rating . | . . . . Parts Repaired . | . . . . Time . | . . . . Parts Recycled . | . . . . Recycled Matter . | . . . . Retrieved Matter . | . . . . Retrieved Components . | . . . . Parts Scanalyzed . | . . . . Part Schematics Acquired . | . . . . Parts Damaged . | . . . . Bothacking | -11 -10 -10 -9 ------------ Run | Yrd Mat Sub Scr Used RIF Installer . | . . . . Robots Hacked . | . . . . Non-combat . | . . . . Combat . | . . . . Robot Hacks Applied . | . . . . Relay Couplers Released . | . . . . Fabnet Peak Effective % . | . . . . Robots Rewired . | . . . . Allies Hacked . | . . . . Hacks Repelled . | . . . . Allies | -11 -10 -10 -9 -------- Run | Yrd Mat Sub Scr Total Allies . | . . . . Largest Group . | . . . . Highest-Rated Group . | . . . . Highest-Rated Ally . | . . . . Total Orders . | . . . . Ally Attacks . | . . . . Total Damage . | . . . . Kills . | . . . . Allies Corrupted . | . . . . Allies Melted . | . . . . Intel | -11 -10 -10 -9 ------- Run | Yrd Mat Sub Scr Active Infowar (turns) . | . . . . Robot Analysis Total . | . . . . Derelict Logs Recovered . | . . . . Drone Launches . | . . . . Drone Recoveries . | . . . . Exploration | -11 -10 -10 -9 ------------- Run | Yrd Mat Sub Scr Turns Passed 669 | . 86 300 283 Spaces Moved 545 | 1 64 202 278 Core . | . . . . Treads . | . . . . Legs 50 | 1 49 . . Wheels 495 | . 15 202 278 Hover . | . . . . Flight . | . . . . Fastest Speed 95 | 120 105 105 95 Average Speed 104 | 120 116 111 97 Slowest Speed 125 | 120 120 125 125 Overloaded Moves . | . . . . Propulsion Burnouts . | . . . . Robots Hopped . | . . . . Potential Cave-ins . | . . . . Cave-ins Triggered . | . . . . Exploration Rate (%) 15 | 2 18 19 22 Regions Visited 3 Branch Regions 2 Pre-discovered Areas . | . . . . Known Exits Taken . | . . . . Unknown Exits Taken 3 | 1 1 1 . Scrap Searched 2 | . . . 2 Spaces Dug . | . . . . Terrain Destroyed . | . . . . Melee . | . . . . Projectile . | . . . . AOE . | . . . . Terrain Rammed . | . . . . Walls Destroyed . | . . . . Machines Disabled . | . . . . Actions | -11 -10 -10 -9 --------- Run | Yrd Mat Sub Scr Total 626 | . 74 261 291 Wait 53 | . 6 47 . Move 542 | . 63 201 278 Hop . | . . . . Pick Up 11 | . 1 2 8 Fast Attach 3 | . 1 1 1 Attach . | . . . . Detach 1 | . . 1 . Swap 3 | . 2 1 . Drop 5 | . 1 . 4 Fire 8 | . . 8 . Melee . | . . . . Ram . | . . . . Kick . | . . . . Crush . | . . . . Escape Stasis . | . . . . Rewire . | . . . . Trap . | . . . . Miscellaneous . | . . . . Route ------- -11/Scrapyard -10/Materials (discovered 2 exits: [*Min] / [*Sub]) -10/Subcaves (discovered 2 exits: [*Mat] / [*Scr]) -9/Scraptown History --------- Turn | Location | Event 1 | -11/Scrapyard | Discovered new exit (range 0) 1 | -11/Scrapyard | Entered Materials 2 | -10/Materials | Met a group of wandering Federalists 56 | -10/Materials | Discovered new exit (range 15) 61 | -10/Materials | Discovered new exit (range 11) 87 | -10/Materials | Entered Subcaves 88 | -10/Subcaves | Continued accompanying wandering Federalists (5) 88 | -10/Subcaves | Approached by a straggling Scientist 192 | -10/Subcaves | Discovered new exit (range 7) 311 | -10/Subcaves | Build established: Mutant 356 | -10/Subcaves | Shifting Twisted Machinery released Mak. Power Source 372 | -10/Subcaves | Shifting Twisted Machinery released Sub. Machine Gun 375 | -10/Subcaves | Wandering Federalist uncovered a shortcut to Scraptown 387 | -10/Subcaves | Entered Scraptown 670 | -9/Scraptown | Self-destructed Last Messages --------------- 00415_ Found Wheel. 00415_ Found 60 Matter. 00417_ Acquired Wheel. 00419_ Acquired 10 matter. 00448_ Searching scrap... 00448_ Found Arm. Wheel. 00448_ Found Spread Laser. 00448_ Found EM Pulse Gun. 00448_ Found Imp. Ion Engine. 00448_ Found 40 Matter. 00450_ Acquired Arm. Wheel. 00653_ Acquired Weapon Cycler. 00654_ Dropped Sml. Laser. 00657_ Acquired Hvy. Machine Gun. 00661_ Acquired Lyr. Medium Armor Plating. 00662_ Acquired Hacking Suite. 00664_ Acquired Com. Matter Pod. 00666_ Acquired Hardlight Generator. 00668_ Dropped Aluminum Leg. 00669_ Acquired Grenade Launcher. Map ----- +----------------------------------------------------+ | ??#"" """ ???????????? | | ??#""" ???????????? | | ??#""" " ###### ##????????????? | | ??#"" " #????????????????????? | | ??#""""""" #????????????????????? | | ??######## #????????????????????? | | ?????????### #""" ""#????????????????????? | | ???????????# #""" "#????????????????????? | | ???????????# #""" "#????????????????????? | | ???????????# #"" "#????????????????????? | | ???????????# #" "#????????????????????? | | ???????????# #??" ""#????????????????????? | | ???????????# #?????##????????????????????? | | ???????????# #???????????????????????????? | | ???????????# #???????????????????????????? | | ??????????## ##??????????????????????????? | | ??????????# ############???????????????? | | ??????????# ??????????????? | | ??????????# ??????????????? | | ??????????# ############???????????????? | | ??????????## ##??????????????????????????? | | ??????###### ########????????????????????? | | ?#"""?"""""" """""""#????????????????????? | | ?#" """""" " "#????????????????????? | | ?#" """"" ] "#????????????????????? | | ?#" " " =@="#????????????????????? | | ??""" " [] "#????????????????????? | | ???""""" " " [[ "#????????????????????? | | ????"""""""" " ][ "#????????????????????? | | ?????####### " []] "#????????????????????? | | ??########## " j "#????????????????????? | | ?#"""""""""" """" ""#????????????????????? | | ?#"""""""" " #### ###????????????????????? | | ??"" " " #### #??????????????????????? | | ?#"""" " """" ""#????????????????????? | | ?#""" " "#????????????????????? | | ?#""""""" " " "" "#????????????????????? | | ?#""" " " "" "#????????????????????? | | ?#""""" " " "?????????????????????? | | ??"""" " " ""?????????????????????? | | ?#"""""" " " """""?????????????????????? | | ?#"""" " """""""?????????????????????? | | ?#""" " " """"????????????????????????? | | ?#"""""" " #####???????????????????????? | | ?#""" " #???????????????????????????? | | ?#"""""" " #???????????????????????????? | | ?#""" "" " #???????????????????????????? | | ?#"" #???????????????????????????? | | ?#"""" " #???????????????????????????? | | ?#"" " #???????????????????????????? | +----------------------------------------------------+ Best States ------------- Heat Dissipation 25 Energy Generation 10 Energy Capacity 250 Matter Stores 300 Matter Capacity 300 Sight Range 16 Terrain Scan Density 10 Evasion (%) 55 Item Schematics ----------------- None Robot Schematics ------------------ None Fabricated ------------ Nothing Repaired ---------- Nothing Alien Tech Used ----------------- None Achievements -------------- None Challenges ------------ None Game ------ Seed DamperAnalysisTreads Manual? 0 Play Time 00:13:35 Cumulative 114.2 hours Start 2025.08.21 @ 22:33:40 End 2025.10.13 @ 22:33:20 Sessions 7 Manual Loads 0 Difficulty Rogue Special Mode None Game No. 115 Rogue 115 Adventurer 0 Explorer 0 Win Type - Total 1 Types 1/0/0/0/0/0/0/0/0/0 Lore% 58 Gallery% 48 Achievement% 47 Wizard Run 0 Options --------- Layout 0 ASCII 0 Keyboard 0 Movement Mouse Keybinds 0 Fullscreen 2 Font 18/X11 Map View 76x50 Zoom Use 0% Tactical HUD 1 Map Filters NONE Filters NONE Steam 1 RUN: 82d4bd33-2dd0-4ac6-a550-11b540d3b3d5